bitfinex/quotes_SOLUSD_20250402
["timestamp","ask_amount","ask_price","bid_price","bid_amount"]
[1743608811382,0.28432314,130.22,130.2,14.96]
[1743608811589,51.02650777,130.21,130.13,18.79181043]
[1743608811790,51.02650777,130.19,130.13,18.79181043]
[1743608812099,26.8692,130.26,130.19,0.42648471]
[1743608812405,51.02650777,130.24,130.18,26.0]
[1743608812570,51.02650777,130.22,130.17,26.0]
[1743608812768,51.02650777,130.22,130.18,302.34]
[1743608812990,0.28432314,130.25,130.18,302.34]
[1743608813220,26.8692,130.26,130.19,0.14216157]
[1743608813396,58.70340777,130.26,130.18,302.34]
[1743608813697,51.02650777,130.19,130.18,287.38]
[1743608814078,18.64964886,130.25,130.18,287.38]
[1743608814408,7.6804,130.2,130.18,287.38]
[1743608814568,7.6797,130.22,130.18,287.38]
[1743608814773,51.02650777,130.21,130.18,287.38]
[1743608814996,51.02650777,130.19,130.07,20.0]
[1743608815196,51.02650777,130.17,130.15,287.38]
[1743608815405,51.02650777,130.19,130.15,287.38]
[1743608815710,51.02650777,130.2,130.15,287.38]
[1743608815903,51.02650777,130.21,130.16,14.92]
[1743608816074,0.063,130.28,130.17,19.07613357]
[1743608816075,7.6787,130.23,130.17,19.07613357]
[1743608816281,7.6787,130.23,130.17,18.79181043]
[1743608816482,77.90200777,130.23,130.16,14.92]
[1743608816993,7.6787,130.23,130.17,0.15620724]
[1743608817191,51.02650777,130.18,130.17,0.15620724]
[1743608817421,51.02650777,130.18,130.17,0.03181469]
[1743608817796,51.31083091,130.18,130.17,1.469e-05]
[1743608817983,51.31083091,130.18,130.15,287.38]
[1743608818185,69.8183182,130.2,130.15,287.38]
[1743608818186,51.02650777,130.17,130.15,287.38]
[1743608818381,0.28432314,130.19,130.15,287.38]
[1743608818382,7.6828,130.16,130.15,287.38]
[1743608818584,26.8734,130.24,130.14,14.84]
[1743608818789,51.02650777,130.19,130.14,14.84]
[1743608819012,26.8734,130.24,130.14,14.84]
[1743608819312,7.6781,130.24,130.18,26.0]
[1743608819521,0.14216157,130.23,130.1,20.0]
[1743608819688,51.02650777,130.14,130.04,12.2584]
[1743608819883,26.0,130.15,130.07,14.8]
[1743608820212,51.02650777,130.13,130.07,14.8]
[1743608820418,7.6852,130.12,130.07,14.8]
[1743608820746,0.28432314,130.17,130.07,14.8]
[1743608820747,51.02650777,130.16,130.07,14.8]
[1743608820914,7.6816,130.18,130.08,18.79181043]
[1743608821115,26.8857,130.18,130.11,26.0]
[1743608821328,51.02650777,130.16,130.07,14.8]
[1743608821490,7.6816,130.18,130.08,38.79181043]
[1743608821682,0.563,130.28,130.15,0.42648471]
[1743608821683,7.6775,130.25,130.15,0.42648471]
[1743608822005,7.7389,130.28,130.21,0.28432314]
[1743608822210,7.7389,130.28,130.16,0.5]
[1743608822211,51.02650777,130.26,130.16,0.5]
[1743608822416,51.02650777,130.27,130.24,26.0]
[1743608822718,0.063,130.28,130.25,287.42]
[1743608822898,7.7388,130.28,130.25,302.34]
[1743608823237,51.02650777,130.27,130.25,287.42]
[1743608823421,7.7388,130.28,130.25,287.42]
[1743608823590,0.063,130.28,130.26,0.14216157]
[1743608823786,0.063,130.28,130.26,19.07613357]
[1743608824126,51.02650777,130.27,130.25,287.42]
[1743608824326,7.7388,130.28,130.25,287.42]
[1743608824584,0.063,130.28,130.25,287.42]
[1743608824757,51.02650777,130.26,130.19,15.06]
[1743608824945,51.02650777,130.24,130.19,15.06]
[1743608825235,51.02650777,130.23,130.19,15.06]
[1743608825516,51.02650777,130.22,130.19,15.06]
[1743608825636,51.02650777,130.21,130.19,15.06]
[1743608825836,51.02650777,130.22,130.19,15.06]
[1743608826033,51.02650777,130.2,130.19,15.06]
[1743608826555,26.8775,130.22,130.19,15.06]
[1743608826757,51.02650777,130.21,130.19,15.06]
[1743608826961,0.28432314,130.19,130.12,26.0]
[1743608827269,0.28432314,130.21,130.07,0.14216157]
[1743608827449,51.02650777,130.19,130.07,0.14216157]
[1743608827653,51.02650777,130.19,130.1,18.79181043]
[1743608827837,51.02650777,130.2,130.13,26.0]
[1743608828165,7.6793,130.22,130.17,26.0]
[1743608828415,7.6793,130.22,130.14,15.14]
[1743608828416,51.02650777,130.21,130.14,15.14]
[1743608828537,7.6799,130.21,130.14,15.14]
[1743608828738,77.90610777,130.21,130.14,15.14]
[1743608829043,55.99190777,130.27,130.19,26.0]
[1743608829044,7.6769,130.26,130.19,26.0]
[1743608829229,7.6769,130.26,130.11,0.5]
[1743608829230,51.02650777,130.24,130.1,20.0]
[1743608829428,65.2539,130.26,130.12,18.79181043]
[1743608829429,51.02650777,130.2,130.12,18.79181043]
[1743608829963,51.02650777,130.23,130.14,18.79181043]
[1743608830178,51.02650777,130.22,130.14,18.79181043]
[1743608830368,51.02650777,130.2,130.12,18.79181043]
[1743608830541,7.681,130.19,130.12,18.79181043]
[1743608830858,7.681,130.19,130.13,0.28432314]
[1743608831457,7.6799,130.21,130.15,26.0]
[1743608831764,51.02650777,130.22,130.15,26.0]
[1743608831937,51.02650777,130.22,130.07,27.6877]
[1743608831938,51.02650777,130.18,130.07,27.6877]
[1743608832138,51.02650777,130.16,130.06,0.03]
[1743608832344,51.02650777,130.14,130.07,15.02]
[1743608832552,7.6846,130.13,130.07,15.02]
[1743608832756,12.51828471,130.18,130.08,306.15181043]
[1743608832757,7.6839,130.15,130.08,306.15181043]
[1743608832953,12.0918,130.24,130.1,0.5]
[1743608833142,7.6787,130.23,130.14,0.14216157]
[1743608833355,7.6787,130.23,130.15,18.64964886]
[1743608833679,26.0,130.19,130.15,15.0]
[1743608833970,19.07613357,130.15,130.1,14.98]
[1743608834171,51.02650777,130.13,130.1,14.98]
[1743608834338,51.02650777,130.15,130.1,14.98]
[1743608834536,51.02650777,130.17,130.1,14.98]
[1743608834736,51.31083091,130.16,130.1,14.98]
[1743608834994,51.02650777,130.12,130.1,14.98]
[1743608835182,51.02650777,130.14,130.1,14.98]
[1743608835459,26.8857,130.18,130.1,14.98]
[1743608835660,7.6816,130.18,130.11,0.14216157]
[1743608835906,0.14216157,130.14,130.08,287.36]
[1743608836068,26.8857,130.18,130.09,15.12216157]
[1743608836289,26.8857,130.18,130.09,14.98]
[1743608836564,51.02650777,130.13,130.09,14.98]
[1743608837068,7.6828,130.16,130.1,15.02]
[1743608837733,51.02650777,130.19,130.11,18.79181043]
[1743608837936,0.063,130.17,130.14,26.0]
[1743608838401,0.063,130.17,130.09,18.64964886]
[1743608838654,51.02650777,130.11,130.08,287.36]
[1743608838873,51.02650777,130.1,130.08,287.36]
[1743608839162,26.28432314,130.07,130.06,0.0001]
[1743608839360,77.31083091,130.07,130.06,0.0001]
[1743608839735,51.02650777,130.07,130.02,0.03]
[1743608839945,26.28432314,130.03,130.02,0.0001]
[1743608840213,77.31083091,130.03,130.02,0.0001]
[1743608840329,4.6896,130.05,130.02,0.0001]
[1743608840531,26.9022,130.1,130.02,0.0001]
[1743608840857,51.31083091,130.07,130.02,0.0001]
[1743608841145,26.9022,130.1,130.02,0.0001]
[1743608841839,51.02650777,130.07,130.02,0.0001]
[1743608842220,7.6883,130.07,130.02,0.0001]
[1743608842848,26.14216157,130.04,130.03,287.48]
[1743608843032,26.28432314,130.04,130.03,287.48]
[1743608843257,96.10264134,130.04,130.02,0.0001]
[1743608843543,26.0,130.0,129.97,0.03]
[1743608843842,4.7851,130.01,129.92,287.48]
[1743608844030,55.81160777,130.01,129.92,295.1769]
[1743608844240,51.02650777,129.98,129.92,287.48]
[1743608844412,51.02650777,129.99,129.92,287.48]
[1743608844617,7.6923,130.0,129.92,295.1768]
[1743608844850,7.6923,130.0,129.94,14.9]
[1743608845037,58.71880777,130.0,129.94,14.9]
[1743608845237,51.02650777,129.98,129.94,14.9]
[1743608845424,77.02650777,129.97,129.94,14.9]
[1743608845628,26.0,129.97,129.94,14.9]
[1743608845938,77.94950777,130.0,129.94,14.9]
[1743608846133,58.71880777,130.0,129.94,14.9]
[1743608846437,4.7851,130.01,129.94,14.9]
[1743608846438,7.6887,130.06,129.95,18.79181043]
[1743608846834,7.6887,130.06,129.98,26.0]
[1743608847138,7.6887,130.06,129.95,18.79181043]
[1743608847139,18.79181043,130.05,129.95,18.79181043]
[1743608847341,51.02650777,130.03,129.95,18.64964886]
[1743608847529,51.02650777,130.03,129.96,0.14216157]
[1743608848129,7.6917,130.01,129.95,18.64964886]
[1743608848316,7.6917,130.01,129.95,18.79181043]
[1743608848544,7.6911,130.02,129.96,14.76]
[1743608848735,7.6887,130.06,129.99,26.0]
[1743608849138,58.71520777,130.06,129.99,26.0]
[1743608849335,58.71520777,130.06,130.0,18.79181043]
[1743608849534,51.02650777,130.05,129.99,26.0]
[1743608849843,77.93700777,130.06,129.99,26.0]
[1743608850038,7.6887,130.06,130.0,18.79181043]
[1743608850237,51.02650777,130.05,129.99,26.0]
[1743608850540,7.6869,130.09,130.04,18.64964886]
[1743608850765,7.6869,130.09,130.05,302.3]
[1743608850922,38.56156157,130.15,130.05,302.3]
[1743608850923,0.14216157,130.15,130.05,302.3]
[1743608851117,65.45136157,130.15,130.05,302.3]
[1743608851320,51.02650777,130.08,130.05,287.64]
[1743608851551,51.02650777,130.06,130.05,287.64]
[1743608851931,0.14216157,130.05,130.02,287.66]
[1743608852149,58.71700777,130.03,130.02,287.66]
[1743608852351,58.71700777,130.03,129.99,14.62]
[1743608852651,26.9168,130.03,129.99,14.62]
[1743608852823,51.02650777,130.0,129.99,14.62]
[1743608853537,26.0,129.97,129.94,0.03]
[1743608853735,0.28432314,129.94,129.93,0.0001]
[1743608853938,26.0,129.91,129.88,0.03]
[1743608854130,58.72530777,129.89,129.88,0.03]
[1743608854728,7.6988,129.89,129.88,0.03]
[1743608854929,4.6687,129.94,129.88,0.03]
[1743608855257,12.69382314,129.99,129.88,0.31432314]
[1743608855476,51.02650777,129.97,129.9,26.0]
[1743608855755,23.8993,130.01,129.92,0.14216157]
[1743608855935,7.6923,130.0,129.94,26.0]
[1743608856140,0.5,130.09,129.98,18.79181043]
[1743608856141,7.6887,130.06,129.98,18.79181043]
[1743608856342,7.6887,130.06,130.0,26.0]
[1743608856539,7.6887,130.06,129.95,14.76432314]
[1743608856736,7.6887,130.06,129.99,44.79181043]
[1743608856941,17.0782,130.15,130.0,0.28432314]
[1743608857140,51.02650777,130.08,129.99,44.79181043]
[1743608857334,51.02650777,130.07,130.01,18.79181043]
[1743608857534,51.02650777,130.07,130.01,18.64964886]
[1743608858051,51.02650777,130.04,129.99,26.0]
[1743608858299,7.6905,130.03,129.99,26.0]
[1743608858449,11.42727535,130.08,130.01,0.14216157]
[1743608858450,7.6898,130.05,130.01,0.14216157]
[1743608858664,7.6881,130.07,130.01,0.14216157]
[1743608858827,11.42727535,130.08,130.04,18.79181043]
[1743608859043,11.42727535,130.08,130.05,0.14216157]
[1743608859222,11.42727535,130.08,130.07,18.79181043]
[1743608859424,11.42727535,130.08,130.07,19.07613357]
[1743608859656,6.39857535,130.08,130.07,39.07613357]
[1743608859855,22.0194507,130.09,130.08,0.42648471]
[1743608860052,22.0194507,130.09,130.08,14.4]
[1743608860357,51.02650777,130.11,130.08,14.4]
[1743608860734,7.684,130.14,130.08,14.4]
[1743608860936,51.02650777,130.12,130.08,14.4]
[1743608861242,77.92050777,130.14,130.08,14.4]
[1743608861441,7.6828,130.16,130.12,26.0]
[1743608861646,0.063,130.17,130.13,18.79181043]
[1743608862352,0.063,130.17,130.08,34.4]
[1743608862547,0.063,130.17,130.12,26.0]
[1743608862748,51.02650777,130.16,130.13,287.68]
[1743608862953,0.063,130.17,130.13,287.68]
[1743608864335,7.7452,130.17,130.13,287.68]
[1743608864530,26.9508,130.17,130.13,287.68]
[1743608865155,7.7452,130.17,130.14,0.14216157]
[1743608865356,7.7452,130.17,130.13,287.68]
[1743608865640,51.02650777,130.16,130.13,287.68]
[1743608865868,51.02650777,130.15,130.13,287.68]
[1743608866246,7.6846,130.13,130.11,287.54]
[1743608866445,19.07613357,130.11,129.96,20.0]
[1743608866647,51.02650777,130.07,129.98,14.24]
[1743608867271,19.07613357,130.11,130.0,0.14216157]
[1743608867272,23.65774886,130.1,130.0,0.14216157]
[1743608867441,51.02650777,130.06,129.99,0.14216157]
[1743608867844,5.0081,130.1,129.99,18.64964886]
[1743608868065,51.02650777,130.07,130.01,26.0]
[1743608868287,18.64964886,130.06,129.97,0.03]
[1743608868470,51.02650777,130.04,129.98,14.2]
[1743608868650,51.02650777,130.03,129.98,14.2]
[1743608868840,0.28432314,130.06,129.98,14.2]
[1743608869139,83.99894886,130.07,129.98,14.2]
[1743608869140,51.02650777,130.05,129.98,14.2]
[1743608869340,51.02650777,130.03,129.98,14.2]
[1743608869544,69.67615663,130.06,129.99,14.18]
[1743608869545,0.42648471,130.05,129.99,14.18]
[1743608869744,65.3493,130.07,129.99,14.18]
[1743608870063,51.02650777,130.05,129.99,14.18]
[1743608870261,26.9043,130.09,130.0,18.79181043]
[1743608870468,26.9043,130.09,130.03,26.0]
[1743608870646,51.02650777,130.07,130.0,18.79181043]
[1743608870847,51.02650777,130.06,129.99,14.18]
[1743608871047,51.02650777,130.06,130.0,18.79181043]
[1743608871349,51.02650777,130.06,130.01,14.18]
[1743608871553,26.9043,130.09,130.01,14.18]
[1743608871763,103.7741,130.09,130.02,18.79181043]
[1743608871966,154.80060777,130.09,130.01,14.18]
[1743608872148,51.02650777,130.05,129.97,0.03]
[1743608872353,51.02650777,130.02,129.98,14.14]
[1743608872596,26.9168,130.03,129.98,14.14]
[1743608872749,26.9168,130.03,129.99,287.62]
[1743608873257,77.94330777,130.03,129.99,287.62]
[1743608873581,51.02650777,130.0,129.99,287.62]
[1743608873881,51.02650777,130.02,129.99,287.62]
[1743608874283,7.6917,130.01,129.99,287.62]
[1743608874653,26.9209,130.01,130.0,287.62]
[1743608874846,7.6917,130.01,129.93,0.28432314]
[1743608875048,7.6917,130.01,129.96,0.42648471]
[1743608875260,26.9168,130.03,129.96,0.14216157]
[1743608875452,26.9168,130.03,129.95,26.0]
[1743608875666,26.9168,130.03,129.96,0.14216157]
[1743608875985,7.6898,130.05,130.01,0.14216157]
[1743608876159,7.6869,130.09,130.01,26.0]
[1743608876475,26.9043,130.09,130.02,26.14216157]
[1743608876678,26.9043,130.09,130.03,18.79181043]
[1743608876866,26.9043,130.09,130.02,26.0]
[1743608877061,77.93080777,130.09,130.01,26.0]
[1743608877272,51.02650777,130.08,130.01,26.14216157]
[1743608877574,51.02650777,130.07,130.01,26.14216157]
[1743608877779,51.02650777,130.07,130.0,26.0]
[1743608877972,51.02650777,130.05,129.94,18.79181043]
[1743608878179,0.28432314,130.08,129.96,18.79181043]
[1743608878360,103.7741,130.09,130.0,18.79181043]
[1743608878767,51.02650777,130.08,130.0,18.79181043]
[1743608879172,51.02650777,130.07,129.99,26.0]
[1743608879366,51.02650777,130.06,129.99,26.0]
[1743608879575,0.28432314,130.08,129.99,26.0]
[1743608879874,51.02650777,130.04,129.99,26.0]
[1743608880078,103.7741,130.09,130.01,0.14216157]
[1743608880286,26.9043,130.09,130.01,0.42648471]
[1743608880665,77.93080777,130.09,130.01,0.42648471]
[1743608880869,51.02650777,130.07,130.01,0.14216157]
[1743608881177,51.02650777,130.06,130.02,13.9]
[1743608881557,51.02650777,130.07,130.02,13.9]
[1743608881970,51.02650777,130.06,130.02,13.9]
[1743608882178,51.02650777,130.04,130.03,13.82]
[1743608882378,26.9168,130.03,129.97,18.79181043]
[1743608882561,77.94330777,130.03,129.98,13.8]
[1743608882759,51.02650777,130.01,129.99,301.48]
[1743608882958,26.9168,130.03,129.99,301.48]
[1743608882959,51.02650777,130.0,129.99,287.66]
[1743608883174,18.79181043,129.99,129.94,301.46]
[1743608883374,51.02650777,129.97,129.94,301.46]
[1743608883571,4.7513,130.0,129.94,301.46]
[1743608883974,51.02650777,129.96,129.94,301.46]
[1743608884278,51.02650777,129.95,129.94,301.46]
[1743608884476,58.72170777,129.95,129.94,301.4]
[1743608884681,78.24413091,129.95,129.88,0.03]
[1743608884863,51.02650777,129.91,129.88,0.03]
[1743608885061,51.02650777,129.89,129.86,18.673691]
[1743608885267,0.28432314,129.91,129.86,18.673691]
[1743608885490,51.02650777,129.92,129.86,18.673691]
[1743608885659,51.02650777,129.87,129.86,18.673691]
[1743608885864,51.02650777,129.88,129.86,32.393691]
[1743608886059,26.9333,129.95,129.89,26.0]
[1743608886265,77.95980777,129.95,129.94,0.03]
[1743608886566,7.6952,129.95,129.88,0.14216157]
[1743608886884,7.694,129.97,129.89,18.64964886]
[1743608887069,77.95570777,129.97,129.9,0.14216157]
[1743608887380,51.02650777,129.96,129.87,26.77603357]
[1743608887681,7.694,129.97,129.9,26.0]
[1743608887891,7.6928,129.99,129.91,32.43181043]
[1743608888067,26.925,129.99,129.91,32.43181043]
[1743608888273,26.925,129.99,129.92,18.64964886]
[1743608888473,7.6928,129.99,129.93,0.14216157]
[1743608888684,12.4437,130.0,129.95,44.64964886]
[1743608888880,12.4437,130.0,129.95,26.0]
[1743608889266,63.47020777,130.0,129.92,18.79181043]
[1743608889464,31.6744,130.0,129.92,18.79181043]
[1743608889684,12.4437,130.0,129.93,0.28432314]
[1743608889884,7.6924,130.0,129.96,18.64964886]
[1743608890186,26.9231,130.0,129.97,13.54]
[1743608890375,77.94960777,130.0,129.97,13.54]
[1743608890684,51.02650777,129.98,129.87,12.4427]
[1743608890887,51.02650777,129.95,129.88,13.5]
[1743608891385,51.02650777,129.94,129.88,13.5]
[1743608891561,51.02650777,129.93,129.85,0.17216157]
[1743608891762,51.02650777,129.88,129.85,0.03]
[1743608891988,51.02650777,129.87,129.86,9.1e-05]
[1743608892182,51.02650777,129.87,129.85,0.03]
[1743608892381,58.72710777,129.86,129.85,0.0001]
[1743608892580,7.7006,129.86,129.85,0.0001]
[1743608892785,7.7006,129.86,129.82,0.03]
[1743608892786,77.97860777,129.86,129.82,0.03]
[1743608892966,26.9521,129.86,129.82,0.03]
[1743608893472,51.02650777,129.92,129.82,0.03]
[1743608893473,7.6988,129.89,129.82,0.03]
[1743608893667,7.6952,129.95,129.87,18.64964886]
[1743608893993,26.9333,129.95,129.87,18.64964886]
[1743608894172,51.02650777,129.93,129.85,0.14216157]
[1743608894494,51.02650777,129.91,129.84,18.64964886]
[1743608894686,7.697,129.92,129.87,26.0]
[1743608894991,4.7363,129.96,129.89,18.64964886]
[1743608895192,12.4309,129.96,129.88,0.28432314]
[1743608895361,51.02650777,129.93,129.89,13.58]
[1743608895762,51.02650777,129.91,129.9,13.58]
[1743608896293,0.28432314,129.93,129.82,0.03]
[1743608896595,7.6988,129.89,129.86,13.56]
[1743608896888,19.2425,129.93,129.86,13.56]
[1743608897103,19.2425,129.93,129.87,18.79181043]
[1743608897471,7.6958,129.94,129.9,26.0]
[1743608897790,7.6953,129.95,129.92,0.14216157]
[1743608898088,12.4311,129.96,129.92,0.14216157]
[1743608898660,12.4311,129.96,129.91,18.64964886]
[1743608898862,31.6677,129.96,129.84,20.0]
[1743608899074,51.02650777,129.95,129.88,26.0]
[1743608899284,31.6677,129.96,129.89,13.5]
[1743608899494,82.69420777,129.96,129.89,32.14964886]
[1743608899699,77.02650777,129.93,129.89,13.5]
[1743608899878,51.02650777,129.91,129.89,13.5]
[1743608900074,26.0,129.93,129.88,13.48]
[1743608900075,51.02650777,129.9,129.88,13.48]
[1743608900302,51.02650777,129.89,129.86,13.52]
[1743608900469,7.7,129.87,129.86,13.52]
[1743608900901,7.6982,129.9,129.86,13.52]
[1743608901503,77.97020777,129.9,129.86,13.52]
[1743608901672,26.9437,129.9,129.86,13.52]
[1743608901871,51.02650777,129.89,129.84,0.03]
[1743608902071,51.02650777,129.88,129.84,0.03]
[1743608902273,26.0,129.83,129.82,0.03]
[1743608902478,33.7023,129.83,129.82,0.03]
[1743608902908,84.72880777,129.83,129.82,0.03]
[1743608903200,7.7023,129.83,129.82,0.03]
[1743608903408,7.7023,129.83,129.82,13.55]
[1743608903409,33.7023,129.83,129.82,13.55]
[1743608903579,7.7023,129.83,129.82,13.55]
[1743608904203,7.7023,129.83,129.8,287.94]
[1743608904204,26.0,129.81,129.8,287.94]
[1743608904586,33.7035,129.81,129.8,287.94]
[1743608904783,84.73000777,129.81,129.8,287.94]
[1743608904996,104.27323091,129.81,129.76,287.94]
[1743608905192,51.02650777,129.78,129.76,287.94]
[1743608905479,53.24672314,129.81,129.75,13.44]
[1743608905480,26.9624,129.81,129.75,13.44]
[1743608905690,4.5889,129.84,129.75,13.44]
[1743608905907,4.5889,129.84,129.76,18.79181043]
[1743608906109,4.5889,129.84,129.77,19.07613357]
[1743608906278,12.4619,129.89,129.78,26.0]
[1743608906482,26.9483,129.88,129.81,18.64964886]
[1743608906790,51.02650777,129.86,129.75,13.44]
[1743608906992,51.02650777,129.82,129.76,13.54]
[1743608907298,51.02650777,129.8,129.76,13.54]
[1743608907606,26.28432314,129.82,129.76,13.56]
[1743608907783,0.14216157,129.86,129.74,0.03]
[1743608907983,51.02650777,129.82,129.75,13.54]
[1743608908179,0.14216157,129.83,129.75,13.54]
[1743608908389,51.02650777,129.78,129.75,13.54]
[1743608908585,7.7065,129.77,129.75,13.54]
[1743608909287,58.73300777,129.77,129.75,13.54]
[1743608909795,58.73300777,129.77,129.74,0.03]
[1743608910099,51.02650777,129.75,129.73,9.18e-05]
[1743608910294,77.02650777,129.74,129.71,0.03]
[1743608910492,26.0,129.74,129.71,0.03]
[1743608910700,33.7078,129.74,129.71,0.03]
[1743608911394,84.73430777,129.74,129.71,0.03]
[1743608911595,52.9771,129.74,129.71,0.03]
[1743608911785,33.7078,129.74,129.71,0.03]
[1743608912216,51.02650777,129.72,129.71,0.03]
[1743608912512,51.02650777,129.73,129.71,0.03]
[1743608912692,7.7089,129.72,129.71,0.03]
[1743608912895,0.28432314,129.76,129.71,0.03]
[1743608912896,19.2664,129.76,129.71,0.03]
[1743608913082,7.7047,129.79,129.71,18.82181043]
[1743608913287,58.73120777,129.79,129.71,0.03]
[1743608913586,51.02650777,129.78,129.71,0.03]
[1743608913786,51.02650777,129.78,129.72,13.56]
[1743608914021,26.9677,129.79,129.74,0.14216157]
[1743608914022,7.7047,129.79,129.74,0.14216157]
[1743608914221,4.7408,129.8,129.74,0.42648471]
[1743608914222,12.4451,129.8,129.74,0.42648471]
[1743608914511,7.7043,129.8,129.74,0.14216157]
[1743608914714,7.7029,129.82,129.76,0.14216157]
[1743608914904,51.02650777,129.8,129.72,13.56]
[1743608915110,51.02650777,129.79,129.72,13.56]
[1743608915309,0.28432314,129.81,129.73,13.56]
[1743608915497,26.0,129.79,129.73,13.56]
[1743608915698,51.02650777,129.8,129.71,26.53121043]
[1743608915699,26.0,129.74,129.71,0.03]
[1743608915996,26.0,129.69,129.65,288.2201]
[1743608916214,26.0,129.68,129.66,13.54]
[1743608916394,18.7072,129.77,129.66,13.54]
[1743608916715,26.9728,129.76,129.66,13.54]
[1743608916922,51.02650777,129.69,129.65,288.2201]
[1743608917209,26.0,129.72,129.65,288.2201]
[1743608917412,26.9728,129.76,129.66,0.28432314]
[1743608917584,51.16866934,129.75,129.67,18.64964886]
[1743608917786,0.14216157,129.75,129.67,18.64964886]
[1743608918016,51.02650777,129.71,129.65,288.2201]
[1743608918338,51.02650777,129.71,129.66,14.0]
[1743608918516,0.28432314,129.72,129.66,14.0]
[1743608918690,51.02650777,129.67,129.65,288.2201]
[1743608918886,77.02650777,129.66,129.65,288.2201]
[1743608919086,26.9894,129.68,129.65,288.2201]
[1743608919490,7.84926157,129.75,129.65,288.2201]
[1743608919686,0.14216157,129.73,129.65,288.2201]
[1743608919917,26.9749,129.75,129.69,26.0]
[1743608920211,19.2594,129.81,129.7,26.0]
[1743608920430,19.2594,129.81,129.75,18.79181043]
[1743608920581,7.7029,129.82,129.77,18.64964886]
[1743608920582,18.10479457,129.82,129.77,18.64964886]
[1743608920786,18.10479457,129.82,129.79,18.64964886]
[1743608921310,10.40189457,129.82,129.79,18.64964886]
[1743608921527,18.10499457,129.82,129.79,18.64964886]
[1743608921711,10.40189457,129.82,129.8,0.14216157]
[1743608922090,10.40189457,129.82,129.79,18.64964886]
[1743608922290,10.40189457,129.82,129.81,26.0]
[1743608922568,10.40189457,129.82,129.81,45.07613357]
[1743608922697,10.40189457,129.82,129.81,333.47613357]
[1743608922890,68.56365211,129.87,129.86,26.0]
[1743608923116,68.56365211,129.87,129.86,13.96]
[1743608923308,68.56365211,129.87,129.86,32.60964886]
[1743608923637,7.6982,129.9,129.86,13.96]
[1743608923817,77.97020777,129.9,129.86,13.96]
[1743608923993,51.02650777,129.88,129.8,18.64964886]
[1743608924322,26.0,129.82,129.79,14.0]
[1743608924518,0.28432314,129.83,129.79,14.0]
[1743608924719,7.7023,129.83,129.79,14.0]
[1743608924907,7.7023,129.83,129.82,21.83986382]
[1743608925091,7.7012,129.85,129.82,21.83986382]
[1743608925293,7.6988,129.89,129.83,18.64964886]
[1743608925493,12.7326,129.9,129.82,21.83986382]
[1743608925796,12.7326,129.9,129.81,5.10172593]
[1743608925797,69.96047977,129.83,129.81,8.975e-05]
[1743608925992,26.0,129.87,129.8,11.57291073]
[1743608926195,51.02650777,129.86,129.8,11.57291073]
[1743608926722,58.72650777,129.87,129.78,7.7052]
[1743608926919,58.72650777,129.87,129.75,31.97981445]
[1743608926920,51.02650777,129.84,129.75,31.97981445]
[1743608927119,51.02650777,129.83,129.79,14.12]
[1743608927327,0.28432314,129.84,129.79,14.12]
[1743608927498,26.95,129.87,129.79,14.12]
[1743608927699,51.02650777,129.85,129.79,14.12]
[1743608927903,7.7,129.87,129.8,18.64964886]
[1743608928106,51.02650777,129.86,129.79,14.12]
[1743608928303,0.28432314,129.85,129.79,14.12]
[1743608928501,51.02650777,129.81,129.74,18.79181043]
[1743608928710,33.7034,129.82,129.75,14.1]
[1743608929027,51.02650777,129.77,129.74,14.1]
[1743608929203,4.6045,129.78,129.74,14.1]
[1743608929408,52.9608,129.82,129.74,14.1]
[1743608929409,33.7034,129.82,129.74,14.1]